fUST/lending_fUST_20250709
["ID","MTS","AMOUNT","RATE_DAILY","PERIOD"]
[370438266,1752018661275,-151.0,0.00020576,2]
[370438267,1752018661285,-151.0,0.00020576,2]
[370438268,1752018661294,-151.0,0.00020576,2]
[370438269,1752018661304,-151.0,0.00020576,2]
[370438270,1752018661314,-201.99690245,0.00020576,2]
[370438271,1752018661324,-500.0,0.00020576,2]
[370438272,1752018661333,-151.0,0.00020576,2]
[370438273,1752018661343,-151.0,0.00020576,2]
[370438274,1752018661352,-151.0,0.00020576,2]
[370438275,1752018661363,-151.0,0.00020576,2]
[370438276,1752018661372,-151.0,0.00020576,2]
[370438277,1752018661381,-151.0,0.00020576,2]
[370438278,1752018661391,-245.11139049,0.00020576,2]
[370438279,1752018661400,-500.0,0.00020576,2]
[370438280,1752018661410,-151.0,0.00020576,2]
[370438281,1752018661419,-151.0,0.00020576,2]
[370438282,1752018661428,-151.0,0.00020576,2]
[370438283,1752018661437,-500.0,0.00020576,2]
[370438284,1752018661447,-151.0,0.00020576,2]
[370438285,1752018661457,-151.0,0.00020576,2]
[370438286,1752018661467,-151.0,0.00020576,2]
[370438287,1752018661476,-151.0,0.00020576,2]
[370438288,1752018661487,-151.0,0.00020576,2]
[370438289,1752018661496,-500.0,0.00020576,2]
[370438290,1752018661506,-151.0,0.00020576,2]
[370438291,1752018661515,-151.0,0.00020576,2]
[370438292,1752018661525,-151.0,0.000206,4]
[370438293,1752018661534,-151.0,0.00020603,2]
[370438294,1752018661545,-151.0,0.00020603,2]
[370438295,1752018661554,-151.0,0.00020603,2]
[370438296,1752018661564,-151.0,0.00020603,2]
[370438297,1752018661573,-151.0,0.00020603,2]
[370438298,1752018661583,-500.0,0.00020603,2]
[370438299,1752018661592,-151.0,0.00020603,2]
[370438300,1752018661602,-151.0,0.00020603,2]
[370438301,1752018661611,-151.0,0.00020603,2]
[370438302,1752018661620,-500.72056785,0.00020603,2]
[370438303,1752018661630,-151.0,0.00020603,2]
[370438304,1752018661640,-500.0,0.00020603,2]
[370438305,1752018661650,-151.0,0.00020603,2]
[370438306,1752018661659,-151.0,0.00020603,2]
[370438307,1752018661668,-151.0,0.00020603,2]
[370438308,1752018661677,-151.0,0.00020603,2]
[370438309,1752018661687,-500.0,0.00020603,2]
[370438310,1752018661696,-151.0,0.00020603,2]
[370438311,1752018661705,-151.0,0.00020603,2]
[370438312,1752018661715,-271.21358302,0.00020611,2]
[370438313,1752018661724,-199.19616753,0.00020631,2]
[370438314,1752018661733,-151.0,0.00020631,2]
[370438315,1752018661742,-151.0,0.00020631,2]
[370438316,1752018661751,-151.0,0.00020631,2]
[370438317,1752018661761,-198.0,0.00020631,2]
[370438318,1752018661770,-500.0,0.00020631,2]
[370438319,1752018661779,-151.0,0.00020631,2]
[370438320,1752018661789,-198.0,0.00020631,2]
[370438321,1752018661799,-151.0,0.00020631,2]
[370438322,1752018661808,-151.0,0.00020631,2]
[370438323,1752018661817,-500.0,0.00020631,2]
[370438324,1752018661826,-151.0,0.00020631,2]
[370438325,1752018661835,-198.0,0.00020631,2]
[370438326,1752018661844,-292.0,0.00020631,2]
[370438327,1752018661853,-151.0,0.00020631,2]
[370438328,1752018661864,-500.0,0.00020631,2]
[370438329,1752018661874,-151.0,0.00020631,2]
[370438330,1752018661884,-198.0,0.00020631,2]
[370438331,1752018661893,-151.0,0.00020658,2]
[370438332,1752018661903,-198.0,0.00020658,2]
[370438333,1752018661913,-151.0,0.00020658,2]
[370438334,1752018661924,-281.44887311,0.00020658,2]
[370438335,1752018661934,-151.0,0.00020658,2]
[370438336,1752018661944,-151.0,0.00020658,2]
[370438337,1752018661954,-246.8883299,0.00020658,2]
[370438338,1752018661964,-151.0,0.00020658,2]
[370438339,1752018661973,-151.0,0.00020658,2]
[370438340,1752018661984,-500.0,0.00020658,2]
[370438341,1752018661994,-264.95655386,0.00020658,2]
[370438342,1752018662004,-259.98735537,0.00020686,2]
[370438343,1752018662097,-151.0,0.00020686,2]
[370438344,1752018662108,-194.68294943,0.00020686,2]
[370438345,1752018662119,-151.0,0.00020686,2]
[370438346,1752018662130,-175.6042664,0.00020686,2]
[370438347,1752018662143,-151.0,0.00020686,2]
[370438348,1752018662152,-500.0,0.00020686,2]
[370438349,1752018662162,-245.0,0.00020713,2]
[370438350,1752018662171,-182.40864838,0.00020713,2]
[370438351,1752018662181,-245.0,0.00020713,2]
[370438352,1752018662190,-500.0,0.00020713,2]
[370438353,1752018662199,-151.0,0.0002074,2]
[370438354,1752018662211,-151.0,0.0002074,2]
[370438355,1752018662221,-500.0,0.0002074,2]
[370438356,1752018662233,-715.419,0.00020767,2]
[370438357,1752018662244,-500.0,0.00020768,2]
[370438358,1752018662254,-420.0,0.00020792,2]
[370438359,1752018662264,-500.0,0.00020795,2]
[370438360,1752018662275,-151.0,0.00020816,2]
[370438361,1752018662284,-460.0,0.00020821,2]
[370438362,1752018662295,-460.0,0.00020821,2]
[370438363,1752018662305,-460.0,0.00020821,2]
[370438364,1752018662315,-460.0,0.00020821,2]
[370438365,1752018662324,-460.0,0.00020821,2]
[370438366,1752018662334,-151.0,0.00020821,2]
[370438367,1752018662343,-151.0,0.00020821,2]
[370438368,1752018662353,-460.0,0.00020821,2]
[370438369,1752018662363,-460.0,0.00020821,2]
[370438370,1752018662373,-460.0,0.00020821,2]
[370438371,1752018662382,-460.0,0.00020821,2]
[370438372,1752018662392,-460.0,0.00020821,2]
[370438373,1752018662402,-306.00683556,0.00020821,2]
[370438374,1752018662412,-460.0,0.00020821,2]
[370438375,1752018662422,-460.0,0.00020821,2]
[370438376,1752018662432,-460.0,0.00020821,2]
[370438377,1752018662441,-460.0,0.00020821,2]
[370438378,1752018662451,-460.0,0.00020821,2]
[370438379,1752018662460,-460.0,0.00020821,2]
[370438380,1752018662470,-460.0,0.00020821,2]
[370438381,1752018662480,-460.0,0.00020821,2]
[370438382,1752018662490,-460.0,0.00020821,2]
[370438383,1752018662499,-460.0,0.00020821,2]
[370438384,1752018662508,-460.0,0.00020821,2]
[370438385,1752018662518,-460.0,0.00020821,2]
[370438386,1752018662527,-486.41,0.00020821,2]
[370438387,1752018662536,-460.0,0.00020821,2]
[370438388,1752018662546,-460.0,0.00020821,2]
[370438389,1752018662556,-460.0,0.00020821,2]
[370438390,1752018662567,-460.0,0.00020821,2]
[370438391,1752018662577,-460.0,0.00020821,2]
[370438392,1752018662587,-460.0,0.00020821,2]
[370438393,1752018662596,-181.97164219,0.00020821,2]
[370438394,1752018662605,-460.0,0.00020821,2]
[370438395,1752018662615,-604.3,0.00020821,2]
[370438396,1752018662624,-645.77,0.00020821,2]
[370438397,1752018662634,-460.0,0.00020821,2]
[370438398,1752018662643,-460.0,0.00020821,2]
[370438399,1752018662654,-526.95,0.00020821,2]
[370438400,1752018662666,-460.0,0.00020821,2]
[370438401,1752018662692,-460.0,0.00020821,2]
[370438402,1752018662709,-460.0,0.00020821,2]
[370438403,1752018662730,-460.0,0.00020821,2]
[370438404,1752018662751,-460.0,0.00020821,2]
[370438405,1752018662772,-460.0,0.00020821,2]
[370438406,1752018662793,-460.0,0.00020821,2]
[370438407,1752018662812,-460.0,0.00020821,2]
[370438408,1752018662827,-460.0,0.00020821,2]
[370438409,1752018662848,-460.0,0.00020821,2]
[370438410,1752018662867,-460.0,0.00020821,2]
[370438411,1752018662886,-460.0,0.00020821,2]
[370438412,1752018662901,-460.0,0.00020821,2]
[370438413,1752018662921,-460.0,0.00020821,2]
[370438414,1752018662936,-460.0,0.00020821,2]
[370438415,1752018662953,-460.0,0.00020821,2]
[370438416,1752018662968,-460.0,0.00020821,2]
[370438417,1752018662986,-650.33,0.00020821,2]
[370438418,1752018663003,-460.0,0.00020821,2]
[370438419,1752018663018,-460.0,0.00020821,2]
[370438420,1752018663034,-653.48,0.00020821,2]
[370438421,1752018663049,-460.0,0.00020821,2]
[370438422,1752018663065,-598.75,0.00020821,2]
[370438423,1752018663081,-617.57,0.00020821,2]
[370438424,1752018663096,-460.0,0.00020821,2]
[370438425,1752018663111,-460.0,0.00020821,2]
[370438426,1752018663128,-1065.97,0.00020821,2]
[370438427,1752018663145,-460.0,0.00020821,2]
[370438428,1752018663162,-416.38178185,0.00020821,2]
[370438429,1752018663177,-460.0,0.00020821,2]
[370438430,1752018663192,-460.0,0.00020821,2]
[370438431,1752018663208,-465.72464833,0.00020821,2]
[370438432,1752018663224,-460.0,0.00020821,2]
[370438433,1752018663239,-519.69,0.00020821,2]
[370438434,1752018663255,-460.0,0.00020821,2]
[370438435,1752018663271,-460.0,0.00020821,2]
[370438436,1752018663286,-460.0,0.00020821,2]
[370438437,1752018663303,-948.41,0.00020821,2]
[370438438,1752018663319,-460.0,0.00020821,2]
[370438439,1752018663344,-460.0,0.00020821,2]
[370438440,1752018663360,-460.0,0.00020821,2]
[370438441,1752018663376,-460.0,0.00020821,2]
[370438442,1752018663394,-236.64201642,0.00020821,2]
[370438443,1752018663409,-428.48263288,0.00020821,2]
[370438444,1752018663425,-2747.84,0.00020821,2]
[370438445,1752018663441,-151.0,0.00020821,2]
[370438446,1752018663458,-1311.66,0.00020821,2]
[370438447,1752018663482,-460.0,0.00020821,2]
[370438448,1752018663497,-460.0,0.00020821,2]
[370438449,1752018663514,-460.0,0.00020821,2]
[370438450,1752018663530,-460.0,0.00020821,2]
[370438451,1752018663546,-460.0,0.00020821,2]
[370438452,1752018663562,-460.0,0.00020821,2]
[370438453,1752018663578,-471.44,0.00020821,2]
[370438454,1752018663593,-460.0,0.00020821,2]
[370438455,1752018663603,-1016.8,0.00020821,2]
[370438456,1752018663762,-550.03,0.00020821,2]
[370438457,1752018663772,-3697.16,0.00020821,2]
[370438458,1752018663782,-460.0,0.00020821,2]
[370438459,1752018663792,-1141.78,0.00020821,2]
[370438460,1752018663801,-460.0,0.00020821,2]
[370438461,1752018663811,-460.0,0.00020821,2]
[370438462,1752018663820,-1898.64,0.00020821,2]
[370438463,1752018663830,-460.0,0.00020821,2]
[370438464,1752018663841,-460.0,0.00020821,2]
[370438465,1752018663851,-460.0,0.00020821,2]
[370438466,1752018663861,-460.0,0.00020821,2]
[370438467,1752018663871,-460.0,0.00020821,2]
[370438468,1752018663880,-460.0,0.00020821,2]
[370438469,1752018663890,-460.0,0.00020821,2]
[370438470,1752018663899,-681.83161,0.00020821,2]
[370438471,1752018663910,-460.0,0.00020821,2]
[370438472,1752018663920,-681.83161,0.00020821,2]
[370438473,1752018663929,-460.0,0.00020821,2]
[370438474,1752018663939,-459.41059472,0.00020821,2]
[370438475,1752018663948,-460.0,0.00020821,2]
[370438476,1752018663958,-460.0,0.00020821,2]
[370438477,1752018663967,-460.0,0.00020821,2]
[370438478,1752018663977,-1208.7,0.00020821,2]
[370438479,1752018663987,-2092.85,0.00020821,2]
[370438480,1752018663996,-460.0,0.00020821,2]
[370438481,1752018664005,-776.83,0.00020821,2]
[370438482,1752018664015,-594.75,0.00020821,2]
[370438483,1752018664025,-460.0,0.00020821,2]
[370438484,1752018664034,-1858.42,0.00020821,2]
[370438485,1752018664044,-1123.29,0.00020821,2]
[370438486,1752018664055,-460.0,0.00020821,2]
[370438487,1752018664064,-460.0,0.00020821,2]
[370438488,1752018664074,-677.06,0.00020821,2]
[370438489,1752018664083,-460.0,0.00020821,2]
[370438490,1752018664093,-460.0,0.00020821,2]
[370438491,1752018664103,-460.0,0.00020821,2]
[370438492,1752018664112,-460.0,0.00020821,2]
[370438493,1752018664121,-1744.98,0.00020821,2]
[370438494,1752018664134,-460.0,0.00020821,2]
[370438495,1752018664143,-460.0,0.00020821,2]
[370438496,1752018664153,-876.27,0.00020821,2]
[370438497,1752018664162,-460.0,0.00020821,2]
[370438498,1752018664172,-460.0,0.00020821,2]
[370438499,1752018664182,-460.0,0.00020821,2]
[370438500,1752018664192,-460.0,0.00020821,2]
[370438501,1752018664201,-460.0,0.00020821,2]
[370438502,1752018664214,-460.0,0.00020821,2]
[370438503,1752018664224,-1600.66,0.00020821,2]
[370438504,1752018664234,-562.78,0.00020821,2]
[370438505,1752018664244,-1764.03,0.00020821,2]
[370438506,1752018664254,-731.73,0.00020821,2]
[370438507,1752018664263,-523.79,0.00020821,2]
[370438508,1752018664273,-320.03897064,0.00020821,2]
[370438509,1752018664282,-483.74377633,0.00020821,2]
[370438510,1752018664291,-3342.7,0.00020821,2]
[370438511,1752018664301,-1171.73,0.00020821,2]
[370438512,1752018664310,-460.0,0.00020821,2]
[370438513,1752018664319,-460.0,0.00020821,2]
[370438514,1752018664328,-460.0,0.00020821,2]
[370438515,1752018664337,-868.56,0.00020821,2]
[370438516,1752018664346,-460.0,0.00020821,2]
[370438517,1752018664356,-193.08403378,0.00020821,2]
[370438518,1752018664365,-460.0,0.00020821,2]
[370438519,1752018664374,-613.93,0.00020821,2]
[370438520,1752018664383,-169.98,0.00020821,2]
[370438521,1752018664392,-460.0,0.00020821,2]
[370438522,1752018664402,-500.0,0.00020823,2]
[370438523,1752018664411,-500.0,0.0002085,2]
[370438524,1752018664420,-967.0,0.00020857,2]
[370438525,1752018664429,-2151.0,0.00020857,2]
[370438526,1752018664438,-646.0,0.00020857,2]
[370438527,1752018664448,-7243.96917814,0.00020859,2]
[370438528,1752018664457,-1500.0,0.00020868,2]
[370438529,1752018664467,-1500.0,0.00020868,2]
[370438530,1752018664476,-500.0,0.00020877,2]
[370438531,1752018664485,-641.0,0.000209,2]
[370438532,1752018664495,-178.372249,0.00020902,2]
[370438533,1752018664504,-500.0,0.00020905,2]
[370438534,1752018664513,-500.0,0.00020932,2]
[370438535,1752018664523,-500.0,0.0002096,2]
[370438536,1752018664533,-151.0,0.00021014,2]
[370438537,1752018664543,-192.232343,0.00021014,2]
[370438538,1752018664552,-192.232343,0.00021014,2]
[370438539,1752018664561,-151.0,0.00021014,2]
[370438540,1752018664570,-151.0,0.00021014,2]
[370438541,1752018664580,-221.385512,0.00021014,2]
[370438542,1752018664589,-151.0,0.00021014,2]
[370438543,1752018664598,-177.894703,0.00021014,2]
[370438544,1752018664608,-177.894703,0.00021014,2]
[370438545,1752018664618,-151.0,0.00021014,2]
[370438546,1752018664627,-1500.0,0.00021068,2]
[370438547,1752018664636,-1500.0,0.00021068,2]
[370438548,1752018664645,-460.0,0.00021095,2]
[370438549,1752018664655,-460.0,0.00021095,2]
[370438550,1752018664664,-479.16,0.00021095,2]
[370438551,1752018664673,-460.0,0.00021095,2]
[370438552,1752018664682,-151.0,0.00021095,2]
[370438553,1752018664691,-460.0,0.00021095,2]
[370438554,1752018664700,-151.0,0.00021095,2]
[370438555,1752018664709,-460.0,0.00021095,2]
[370438556,1752018664718,-460.0,0.00021095,2]
[370438557,1752018664727,-151.0,0.00021095,2]
[370438558,1752018664737,-460.0,0.00021095,2]
[370438559,1752018664746,-151.0,0.00021095,2]
[370438560,1752018664755,-460.0,0.00021095,2]
[370438561,1752018664764,-460.0,0.00021095,2]
[370438562,1752018664774,-460.0,0.00021095,2]
[370438563,1752018664783,-460.0,0.00021095,2]
[370438564,1752018664792,-460.0,0.00021095,2]
[370438565,1752018664802,-460.0,0.00021095,2]
[370438566,1752018664811,-460.0,0.00021095,2]
[370438567,1752018664821,-460.0,0.00021095,2]
[370438568,1752018664831,-460.0,0.00021095,2]
[370438569,1752018664840,-460.0,0.00021095,2]
[370438570,1752018664849,-151.0,0.00021095,2]
[370438571,1752018664859,-151.0,0.00021095,2]
[370438572,1752018664868,-460.0,0.00021095,2]
[370438573,1752018664878,-460.0,0.00021095,2]
[370438574,1752018664887,-460.0,0.00021095,2]
[370438575,1752018664896,-460.0,0.00021095,2]
[370438576,1752018664905,-151.0,0.00021095,2]
[370438577,1752018664915,-486.41,0.00021095,2]
[370438578,1752018664924,-350.0,0.00021095,2]
[370438579,1752018664934,-460.0,0.00021095,2]
[370438580,1752018664944,-460.0,0.00021095,2]
[370438581,1752018664953,-476.03,0.00021095,2]
[370438582,1752018664962,-460.0,0.00021095,2]
[370438583,1752018664971,-460.0,0.00021095,2]
[370438584,1752018664980,-460.0,0.00021095,2]
[370438585,1752018664990,-604.3,0.00021095,2]
[370438586,1752018664999,-645.77,0.00021095,2]
[370438587,1752018665009,-460.0,0.00021095,2]
[370438588,1752018665019,-460.0,0.00021095,2]
[370438589,1752018665028,-526.95,0.00021095,2]
[370438590,1752018665038,-460.0,0.00021095,2]
[370438591,1752018665047,-460.0,0.00021095,2]
[370438592,1752018665056,-460.0,0.00021095,2]
[370438593,1752018665066,-460.0,0.00021095,2]
[370438594,1752018665076,-168.777223,0.00021095,2]
[370438595,1752018665085,-168.777223,0.00021095,2]
[370438596,1752018665094,-460.0,0.00021095,2]
[370438597,1752018665103,-460.0,0.00021095,2]
[370438598,1752018665114,-460.0,0.00021095,2]
[370438599,1752018665124,-460.0,0.00021095,2]
[370438600,1752018665138,-460.0,0.00021095,2]
[370438601,1752018665148,-460.0,0.00021095,2]
[370438602,1752018665157,-460.0,0.00021095,2]
[370438603,1752018665167,-460.0,0.00021095,2]
[370438604,1752018665178,-460.0,0.00021095,2]
[370438605,1752018665188,-460.0,0.00021095,2]
[370438606,1752018665197,-650.33,0.00021095,2]
[370438607,1752018665207,-230.31533964,0.00021095,2]
[370438608,1752018665218,-460.0,0.00021095,2]
[370438609,1752018665228,-653.48,0.00021095,2]
[370438610,1752018665237,-460.0,0.00021095,2]
[370438611,1752018665247,-617.57,0.00021095,2]
[370438612,1752018665257,-460.0,0.00021095,2]
[370438613,1752018665267,-234.723998,0.00021095,2]
[370438614,1752018665276,-234.723998,0.00021095,2]
[370438615,1752018665286,-460.0,0.00021095,2]
[370438616,1752018665296,-1065.97,0.00021095,2]
[370438617,1752018665306,-460.0,0.00021095,2]
[370438618,1752018665315,-460.0,0.00021095,2]
[370438619,1752018665325,-460.0,0.00021095,2]
[370438620,1752018665335,-460.0,0.00021095,2]
[370438621,1752018665344,-519.69,0.00021095,2]
[370438622,1752018665354,-460.0,0.00021095,2]
[370438623,1752018665364,-460.0,0.00021095,2]
[370438624,1752018665374,-948.41,0.00021095,2]
[370438625,1752018665383,-460.0,0.00021095,2]
[370438626,1752018665393,-460.0,0.00021095,2]
[370438627,1752018665403,-460.0,0.00021095,2]
[370438628,1752018665414,-460.0,0.00021095,2]
[370438629,1752018665423,-151.0,0.00021095,2]
[370438630,1752018665433,-2747.84,0.00021095,2]
[370438631,1752018665443,-1311.66,0.00021095,2]
[370438632,1752018665453,-460.0,0.00021095,2]
[370438633,1752018665463,-460.0,0.00021095,2]
[370438634,1752018665472,-460.0,0.00021095,2]
[370438635,1752018665481,-460.0,0.00021095,2]
[370438636,1752018665491,-460.0,0.00021095,2]
[370438637,1752018665603,-460.0,0.00021095,2]
[370438638,1752018665615,-471.44,0.00021095,2]
[370438639,1752018665625,-460.0,0.00021095,2]
[370438640,1752018665635,-1016.8,0.00021095,2]
[370438641,1752018665645,-3697.16,0.00021095,2]
[370438642,1752018665655,-460.0,0.00021095,2]
[370438643,1752018665664,-1141.78,0.00021095,2]
[370438644,1752018665673,-460.0,0.00021095,2]
[370438645,1752018665683,-460.0,0.00021095,2]
[370438646,1752018665692,-1898.64,0.00021095,2]
[370438647,1752018665701,-460.0,0.00021095,2]
[370438648,1752018665710,-460.0,0.00021095,2]
[370438649,1752018665720,-460.0,0.00021095,2]
[370438650,1752018665730,-460.0,0.00021095,2]
[370438651,1752018665739,-460.0,0.00021095,2]
[370438652,1752018665749,-681.83161,0.00021095,2]
[370438653,1752018665759,-460.0,0.00021095,2]
[370438654,1752018665768,-681.83161,0.00021095,2]
[370438655,1752018665778,-460.0,0.00021095,2]
[370438656,1752018665787,-460.0,0.00021095,2]
[370438657,1752018665797,-506.03649688,0.00021095,2]
[370438658,1752018665806,-460.0,0.00021095,2]
[370438659,1752018665815,-1208.7,0.00021095,2]
[370438660,1752018665825,-2092.85,0.00021095,2]
[370438661,1752018665834,-460.0,0.00021095,2]
[370438662,1752018665845,-776.83,0.00021095,2]
[370438663,1752018665854,-594.75,0.00021095,2]
[370438664,1752018665864,-460.0,0.00021095,2]
[370438665,1752018665873,-1858.42,0.00021095,2]
[370438666,1752018665883,-1123.29,0.00021095,2]
[370438667,1752018665892,-281.68,0.00021095,2]
[370438668,1752018665901,-460.0,0.00021095,2]
[370438669,1752018665911,-677.06,0.00021095,2]
[370438670,1752018665920,-460.0,0.00021095,2]
[370438671,1752018665930,-460.0,0.00021095,2]
[370438672,1752018665939,-460.0,0.00021095,2]
[370438673,1752018665949,-460.0,0.00021095,2]
[370438674,1752018665958,-1744.98,0.00021095,2]
[370438675,1752018665968,-460.0,0.00021095,2]
[370438676,1752018665978,-460.0,0.00021095,2]
[370438677,1752018665988,-876.27,0.00021095,2]
[370438678,1752018665998,-460.0,0.00021095,2]
[370438679,1752018666007,-460.0,0.00021095,2]
[370438680,1752018666017,-460.0,0.00021095,2]
[370438681,1752018666026,-460.0,0.00021095,2]
[370438682,1752018666036,-460.0,0.00021095,2]
[370438683,1752018666045,-319.81666574,0.00021095,2]
[370438684,1752018666055,-1600.66,0.00021095,2]
[370438685,1752018666064,-1764.03,0.00021095,2]
[370438686,1752018666074,-562.78,0.00021095,2]
[370438687,1752018666084,-731.73,0.00021095,2]
[370438688,1752018666093,-523.79,0.00021095,2]
[370438689,1752018666103,-3342.7,0.00021095,2]
[370438690,1752018666112,-1171.73,0.00021095,2]
[370438691,1752018666122,-460.0,0.00021095,2]
[370438692,1752018666132,-460.0,0.00021095,2]
[370438693,1752018666145,-460.0,0.00021095,2]
[370438694,1752018666155,-868.56,0.00021095,2]
[370438695,1752018666164,-460.0,0.00021095,2]
[370438696,1752018666175,-460.0,0.00021095,2]
[370438697,1752018666185,-332.94815065,0.00021095,2]
[370438698,1752018666194,-297.428802,0.00021095,2]
[370438699,1752018666204,-613.93,0.00021095,2]
[370438700,1752018666214,-460.0,0.00021095,2]
[370438701,1752018666224,-168.0,0.00021101,2]
[370438702,1752018666233,-215.0738,0.00021135,2]
[370438703,1752018666243,-168.0,0.00021145,2]
[370438704,1752018666252,-500.0,0.00021205,2]
[370438705,1752018666262,-168.0,0.00021232,2]
[370438706,1752018666271,-168.0,0.0002125,2]
[370438707,1752018666281,-509.02054853,0.00021271,2]
[370438708,1752018666291,-500.0,0.00021289,2]
[370438709,1752018666302,-518.20478172,0.00021289,2]
[370438710,1752018666311,-500.0,0.00021289,2]
[370438711,1752018666321,-501.28097156,0.00021289,2]
[370438712,1752018666331,-500.0,0.00021289,2]
[370438713,1752018666341,-500.0,0.00021289,2]
[370438714,1752018666351,-500.0,0.00021289,2]
[370438715,1752018666361,-500.0,0.00021289,2]
[370438716,1752018666372,-500.0,0.00021289,2]
[370438717,1752018666382,-500.0,0.00021289,2]
[370438718,1752018666392,-500.0,0.00021289,2]
[370438719,1752018666401,-500.4743548,0.00021289,2]
[370438720,1752018666412,-501.26556098,0.00021289,2]
[370438721,1752018666423,-168.0,0.00021289,2]
[370438722,1752018666433,-500.0,0.00021314,2]
[370438723,1752018666443,-4989.65,0.00021315,2]
[370438724,1752018666453,-151.0,0.00021342,2]
[370438725,1752018666463,-168.0,0.00021354,2]
[370438726,1752018666473,-460.0,0.00021369,2]
[370438727,1752018666483,-460.0,0.00021369,2]
[370438728,1752018666492,-151.0,0.00021369,2]
[370438729,1752018666502,-460.0,0.00021369,2]
[370438730,1752018666511,-151.0,0.00021369,2]
[370438731,1752018666520,-216.9213308,0.00021369,2]
[370438732,1752018666530,-460.0,0.00021369,2]
[370438733,1752018666539,-460.0,0.00021369,2]
[370438734,1752018666549,-460.0,0.00021369,2]
[370438735,1752018666561,-460.0,0.00021369,2]
[370438736,1752018666570,-460.0,0.00021369,2]
[370438737,1752018666579,-460.0,0.00021369,2]
[370438738,1752018666588,-460.0,0.00021369,2]
[370438739,1752018666598,-460.0,0.00021369,2]
[370438740,1752018666608,-460.0,0.00021369,2]
[370438741,1752018666617,-460.0,0.00021369,2]
[370438742,1752018666627,-460.0,0.00021369,2]
[370438743,1752018666638,-221.64365544,0.00021369,2]
[370438744,1752018666647,-460.0,0.00021369,2]
[370438745,1752018666656,-460.0,0.00021369,2]
[370438746,1752018666666,-460.0,0.00021369,2]
[370438747,1752018666675,-486.41,0.00021369,2]
[370438748,1752018666684,-460.0,0.00021369,2]
[370438749,1752018666694,-460.0,0.00021369,2]
[370438750,1752018666704,-203.97894514,0.00021369,2]
[370438751,1752018666713,-460.0,0.00021369,2]
[370438752,1752018666723,-460.0,0.00021369,2]
[370438753,1752018666732,-604.3,0.00021369,2]
[370438754,1752018666742,-645.77,0.00021369,2]
[370438755,1752018666751,-407.30170349,0.00021369,2]
[370438756,1752018666760,-460.0,0.00021369,2]
[370438757,1752018666770,-526.95,0.00021369,2]
[370438758,1752018666779,-460.0,0.00021369,2]
[370438759,1752018666789,-460.0,0.00021369,2]
[370438760,1752018666798,-460.0,0.00021369,2]
[370438761,1752018666808,-151.0,0.00021369,2]
[370438762,1752018666818,-460.0,0.00021369,2]
[370438763,1752018666827,-460.0,0.00021369,2]
[370438764,1752018666837,-192.232343,0.00021369,2]
[370438765,1752018666847,-460.0,0.00021369,2]